[Event "WALTON 40th BAN-ch U20 Girls 2022"]
[Site "Dhaka"]
[Date "2022.02.19"]
[Round "5.3"]
[White "Tasnia Tarannum, Orpa"]
[Black "Israt, Jahan Diba"]
[Result "0-1"]
[ECO "B76"]
[WhiteElo "1678"]
[BlackElo "1697"]
[Annotator "NA"]
[PlyCount "68"]
[EventDate "2022.02.15"]
[EventType "swiss"]
[EventCountry "BAN"]
[SourceTitle "playchess.com"]
[Source "ChessBase"]
[SourceQuality "1"]
[TimeControl "5400+30"]

1. e4 {[%emt 0:00:04]} c5 {[%emt 0:00:07]} 2. Nf3 {[%emt 0:00:04]} d6 {[%emt 0:00:05]} 3. d4 {[%emt 0:00:04]} cxd4 {[%emt 0:00:05]} 4. Nxd4 {[%emt 0:00:06]} Nf6 {[%emt 0:00:06]} 5. Nc3 {[%emt 0:00:07]} g6 {[%emt 0:00:08]} 6. Be3 {[%emt 0:00:28]} Bg7 {[%emt 0:00:08]} 7. f3 {[%emt 0:00:37]} O-O {[%emt 0:00:08]} 8. Qd2 {[%emt 0:00:02]} Nc6 {[%emt 0:00:08]} 9. O-O-O {[%emt 0:00:45]} d5 {[%emt 0:00:13]} 10. exd5 {[%emt 0:02:51]} Nxd5 {[%emt 0:00:09]} 11. Nxc6 {[%emt 0:04:08]} bxc6 {[%emt 0:00:10]} 12. Bd4 {[%emt 0:03:16]} Be6 {[%emt 0:04:57]} 13. Bxg7 {[%emt 0:02:14]} Kxg7 {[%emt 0:00:13]} 14. Bc4 {[%emt 0:04:18]} Nc7 {[%emt 0:03:56]} 15. Qe2 {[%emt 0:02:08]} Qc8 {[%emt 0:01:55]} 16. h4 {[%emt 0:01:26]} Rb8 {[%emt 0:03:15]} 17. Bxe6 {[%emt 0:09:19]} Nxe6 {[%emt 0:01:16]} 18. h5 {[%emt 0:01:39]} Qb7 {[%emt 0:02:44]} 19. b3 {[%emt 0:00:57]} Qc7 {[%emt 0:10:23]} 20. hxg6 {[%emt 0:08:43]} hxg6 {[%emt 0:01:41]} 21. Qe3 {[%emt 0:04:08]} Rh8 {[%emt 0:01:37]} 22. Ne2 {[%emt 0:02:52]} Rxh1 {[%emt 0:05:03]} 23. Rxh1 {[%emt 0:00:16]} Rh8 {[%emt 0:00:35]} 24. Qc3+ {[%emt 0:02:00]} f6 {[%emt 0:00:21]} 25. Re1 {[%emt 0:01:00]} Rh2 {[%emt 0:02:48]} 26. Qc4 {[%emt 0:01:40]} Qe5 {[%emt 0:03:43]} 27. Rg1 {[%emt 0:12:21]} Qe3+ {[%emt 0:07:56]} 28. Kb2 {[%emt 0:05:27]} c5 {[%emt 0:06:45]} 29. Rd1 {[%emt 0:03:57]} Rxg2 {[%emt 0:03:58]} 30. Nc3 {[%emt 0:00:57]} Nd4 {[%emt 0:02:58]} 31. Rc1 {[%emt 0:03:55]} Nxf3 {[%emt 0:04:45]} 32. Qa6 {[%emt 0:02:46]} Ne1 {[%emt 0:01:18]} 33. Rxe1 {[%emt 0:09:56]} Qxe1 {[%emt 0:00:16]} 34. Qxa7 {[%emt 0:00:11]} Rg1 {[%emt 0:02:29]} 0-1

[Event "WALTON 40th BAN-ch U20 Girls 2022"]
[Site "Dhaka"]
[Date "2022.02.19"]
[Round "5.4"]
[White "Nusrat Jahan, Alo"]
[Black "Marzuka, Mukarrama"]
[Result "1-0"]
[ECO "B13"]
[WhiteElo "1818"]
[BlackElo "1095"]
[Annotator "NA"]
[PlyCount "73"]
[EventDate "2022.02.15"]
[EventType "swiss"]
[EventCountry "BAN"]
[SourceTitle "playchess.com"]
[Source "ChessBase"]
[SourceQuality "1"]
[TimeControl "5400+30"]

{[%evp 8,72,16,26,22,18,20,6,10,3,7,3,20,-18,16,15,19,20,39,26,274,279,867,885,841,909,995,1033,1031,972,1139,1154,1302,1317,1312,1331,1337,1294,1225,1325,1245,1295,1567,1511,1672,2248,1755,1894,1872,2173,2045,2135,2252,2691,2458,29987,3444,29989,29989,29991,29992,29993,29994,29995,29998,29999,29999]} 1. e4 {[%emt 0:00:04]} c6 {[%emt 0:00:09]} 2. d4 {[%emt 0:00:07]} d5 {[%emt 0:00:04]} 3. Nc3 {[%emt 0:00:09]} e6 {[%emt 0:00:43]} 4. exd5 {[%emt 0:00:30]} cxd5 {[%emt 0:00:11]} 5. Nf3 {[%emt 0:01:20]} Nf6 {[%emt 0:00:10]} 6. Bf4 {[%emt 0:02:03]} a6 {[%emt 0:00:19]} 7. a3 {[%emt 0:00:18]} Nc6 {[%emt 0:02:29]} 8. Be2 {[%emt 0:03:34]} Be7 {[%emt 0:00:24]} 9. O-O {[%emt 0:00:28]} O-O {[%emt 0:00:08]} 10. Re1 {[%emt 0:03:42]} Re8 {[%emt 0:00:50]} 11. Bd3 {[%emt 0:06:10]} Qb6 {[%emt 0:14:05]} 12. Na4 {[%emt 0:03:45]} Qa7 {[%emt 0:03:18]} 13. b4 {[%emt 0:02:43]} Nxd4 $2 {[%emt 0:08:34]} (13... b6 $11) 14. Nxd4 {[%emt 0:00:23]} Qxd4 $2 {[%emt 0:00:09] [#]} (14... Bd7) 15. Bxh7+ $1 {[%emt 0:00:15] Discovered Attack} Kxh7 {[%emt 0:09:09]} 16. Qxd4 {[%emt 0:00:36]} Bd7 {[%emt 0:00:38]} 17. Nb6 {[%emt 0:00:44]} Rad8 {[%emt 0:03:13]} 18. Bc7 {[%emt 0:00:22]} Rh8 {[%emt 0:01:58]} 19. Bxd8 {[%emt 0:00:13]} Bxd8 {[%emt 0:00:07]} 20. Nxd7 {[%emt 0:00:08]} Nxd7 {[%emt 0:00:15]} 21. c4 {[%emt 0:00:14]} Nf6 {[%emt 0:03:12]} 22. c5 {[%emt 0:00:23]} Re8 {[%emt 0:03:29]} 23. a4 {[%emt 0:02:08]} Be7 {[%emt 0:05:25]} 24. b5 {[%emt 0:02:17]} Rc8 {[%emt 0:16:55]} 25. Rac1 {[%emt 0:01:32]} Nd7 {[%emt 0:08:21]} 26. c6 {[%emt 0:00:51]} bxc6 {[%emt 0:00:02]} 27. bxc6 {[%emt 0:00:09]} Nf6 {[%emt 0:03:17]} 28. Qd3+ {[%emt 0:02:19]} g6 {[%emt 0:01:13]} 29. Qxa6 {[%emt 0:00:25]} Re8 {[%emt 0:03:00]} 30. c7 {[%emt 0:00:17]} Kg7 {[%emt 0:03:44]} 31. c8=Q {[%emt 0:00:14]} Rxc8 {[%emt 0:00:15]} 32. Rxc8 {[%emt 0:00:09]} Bb4 {[%emt 0:03:38]} 33. Rb1 {[%emt 0:00:39]} Bd2 {[%emt 0:02:43]} 34. Rb7 {[%emt 0:00:58]} Ne4 {[%emt 0:01:37]} 35. Qxe6 {[%emt 0:00:34]} Nc5 {[%emt 0:01:56]} 36. Qe5+ {[%emt 0:00:41]} Kh6 {[%emt 0:00:48]} 37. Rh8# {[%emt 0:00:09]} 1-0

[Event "WALTON 40th BAN-ch U20 Girls 2022"]
[Site "Dhaka"]
[Date "2022.02.19"]
[Round "5.5"]
[White "Wadifa, Ahmed"]
[Black "Jannatul, Ferdousi"]
[Result "1-0"]
[ECO "A13"]
[WhiteElo "1786"]
[BlackElo "1609"]
[Annotator "NA"]
[PlyCount "84"]
[EventDate "2022.02.15"]
[EventType "swiss"]
[EventCountry "BAN"]
[SourceTitle "playchess.com"]
[Source "ChessBase"]
[SourceQuality "1"]
[TimeControl "5400+30"]

1. c4 {[%emt 0:00:10]} Nf6 {[%emt 0:01:50]} 2. b3 {[%emt 0:00:27]} e6 {[%emt 0:02:54]} 3. Bb2 {[%emt 0:00:10]} d5 {[%emt 0:00:54]} 4. Nf3 {[%emt 0:01:49]} Be7 {[%emt 0:02:13]} 5. e3 {[%emt 0:00:42]} b6 {[%emt 0:03:04]} 6. Be2 {[%emt 0:00:47]} Bb7 {[%emt 0:00:35]} 7. O-O {[%emt 0:00:24]} O-O {[%emt 0:00:38]} 8. Nc3 {[%emt 1:30:01]} c5 {[%emt 0:04:13]} 9. Rc1 {[%emt 0:00:00]} d4 {[%emt 0:02:13]} 10. exd4 {[%emt 0:00:00]} cxd4 {[%emt 0:01:09]} 11. Nb5 {[%emt 0:00:00]} d3 {[%emt 0:04:31]} 12. Bxd3 {[%emt 0:00:00]} Qxd3 {[%emt 0:01:05]} 13. Nc7 {[%emt 0:00:00]} Nbd7 {[%emt 0:03:39]} 14. Nxa8 {[%emt 0:00:00]} Bxa8 {[%emt 0:01:25]} 15. Qc2 {[%emt 0:00:00]} Qd6 {[%emt 0:15:00]} 16. Nd4 {[%emt 0:00:00]} Ng4 {[%emt 0:24:41]} 17. f4 {[%emt 0:00:00]} Qc5 {[%emt 0:07:07]} 18. h3 {[%emt 0:00:00]} Nh6 {[%emt 0:02:40]} 19. Kh1 {[%emt 0:00:00]} Qh5 {[%emt 0:03:56]} 20. Nf3 {[%emt 0:00:00]} Nf5 {[%emt 0:03:32]} 21. Kg1 {[%emt 0:00:00]} Ng3 {[%emt 0:03:13]} 22. Rf2 {[%emt 0:00:00]} Nc5 {[%emt 0:04:53]} 23. d3 {[%emt 0:00:00]} Rd8 {[%emt 0:02:49]} 24. Rd1 {[%emt 0:00:00]} Qg6 {[%emt 0:01:12]} 25. Ne5 {[%emt 0:00:00]} Qh5 {[%emt 0:01:59]} 26. Nf3 {[%emt 0:00:00]} Na6 {[%emt 0:01:24]} 27. a3 {[%emt 0:00:00]} Bc5 {[%emt 0:00:34]} 28. d4 {[%emt 0:00:00]} Be7 {[%emt 0:00:35]} 29. b4 {[%emt 0:00:00]} Ne4 {[%emt 0:00:28]} 30. Re2 {[%emt 0:00:00]} Ng3 {[%emt 0:00:30]} 31. Rf2 {[%emt 0:00:00]} Ne4 {[%emt 0:00:30]} 32. Re2 {[%emt 0:00:00]} Ng3 {[%emt 0:00:31]} 33. Rf2 {[%emt 0:00:00]} Be4 {[%emt 0:00:31]} 34. Qa4 {[%emt 0:00:00]} Nc7 {[%emt 0:00:29]} 35. Qxa7 {[%emt 0:00:01]} Bd6 {[%emt 0:00:24]} 36. Qxb6 {[%emt 0:00:54]} Bxf4 {[%emt 0:00:16]} 37. d5 {[%emt 0:00:31]} exd5 {[%emt 0:00:46]} 38. cxd5 {[%emt 0:00:08]} h6 {[%emt 0:00:32]} 39. Qd4 {[%emt 0:00:24]} f6 {[%emt 0:00:30]} 40. Bc1 {[%emt 0:06:34]} Bxf3 {[%emt 0:00:30]} 41. gxf3 {[%emt 0:00:08]} Bxc1 {[%emt 0:00:33]} 42. Rxc1 {[%emt 0:00:03]} Qxh3 {[%emt 0:01:02]} 1-0

[Event "WALTON 40th BAN-ch U20 Girls 2022"]
[Site "Dhaka"]
[Date "2022.02.20"]
[Round "6.2"]
[White "Kazi Zarin, Tasnim"]
[Black "Israt, Jahan Diba"]
[Result "1-0"]
[ECO "B76"]
[WhiteElo "1801"]
[BlackElo "1697"]
[Annotator "NA RC"]
[PlyCount "101"]
[EventDate "2022.02.15"]
[EventType "swiss"]
[EventCountry "BAN"]
[SourceTitle "playchess.com"]
[Source "ChessBase"]
[SourceQuality "1"]
[TimeControl "5400+30"]

1. e4 {[%emt 0:14:17]} c5 {[%emt 0:00:06]} 2. Nf3 {[%emt 0:00:21]} d6 {[%emt 0:00:10]} 3. d4 {[%emt 0:00:06]} cxd4 {[%emt 0:00:05]} 4. Nxd4 {[%emt 0:00:03]} Nf6 {[%emt 0:00:09]} 5. Nc3 {[%emt 0:00:05]} g6 {[%emt 0:00:06]} 6. Be3 {[%emt 0:00:05]} Bg7 {[%emt 0:00:05]} 7. f3 {[%emt 0:00:04]} O-O {[%emt 0:00:09]} 8. Qd2 {[%emt 0:00:01]} Nc6 {[%emt 0:00:08]} 9. O-O-O {[%emt 0:00:06]} d5 {[%emt 0:00:04]} 10. Qe1 {[%emt 0:00:04]} e5 {[%emt 0:00:13]} 11. Nxc6 {[%emt 0:00:05]} bxc6 {[%emt 0:00:15]} 12. exd5 {[%emt 0:00:05]} cxd5 {[%emt 0:00:16]} 13. Bg5 {[%emt 0:00:05]} Be6 {[%emt 0:15:55] [#]} 14. Bc4 $1 {[%emt 0:00:05]} Qa5 {[%emt 0:04:09] [#]} (14... Qc7 $14 15. Bxd5 Nxd5 16. Nxd5 Bxd5 17. Rxd5 Qc4) 15. Nxd5 $1 {[%emt 0:03:28]} Qxe1 {[%emt 0:02:10]} 16. Rhxe1 {[%emt 0:00:03]} Nxd5 {[%emt 0:04:18]} 17. Bxd5 {[%emt 0:00:06]} Bxd5 {[%emt 0:01:05]} 18. Rxd5 {[%emt 0:00:06]} f6 {[%emt 0:01:22]} 19. Be3 {[%emt 0:00:46]} Rf7 {[%emt 0:01:03]} 20. Red1 {[%emt 0:01:49]} Re7 {[%emt 0:07:54]} 21. Rd8+ {[%emt 0:02:45]} Rxd8 {[%emt 0:03:34]} 22. Rxd8+ {[%emt 0:00:03]} Kf7 {[%emt 0:01:11]} 23. Ra8 {[%emt 0:00:02]} Ke6 {[%emt 0:02:28]} 24. Rxa7 {[%emt 0:00:11]} Rxa7 {[%emt 0:00:35]} 25. Bxa7 {[%emt 0:00:02]} Bh6+ {[%emt 0:00:37]} 26. Kd1 {[%emt 0:00:28]} Kd5 {[%emt 0:00:38]} 27. Ke2 {[%emt 0:03:02]} Kc4 {[%emt 0:02:12]} 28. Be3 {[%emt 0:00:25]} Bf8 {[%emt 0:01:32]} 29. a4 {[%emt 0:01:59]} Bb4 {[%emt 0:05:18]} 30. Bb6 {[%emt 0:03:02]} Bd6 {[%emt 0:03:12]} 31. a5 {[%emt 0:03:50]} Kb5 {[%emt 0:01:23]} 32. c4+ {[%emt 1:08:51]} Kxc4 {[%emt 0:02:48]} 33. a6 {[%emt 0:00:00]} Bb8 {[%emt 0:00:11]} 34. a7 {[%emt 0:00:00]} Bxa7 {[%emt 0:00:06]} 35. Bxa7 {[%emt 0:00:00]} Kb3 {[%emt 0:00:13]} 36. Bc5 {[%emt 0:00:00]} Kxb2 {[%emt 0:00:25]} 37. Be7 {[%emt 0:00:00]} f5 {[%emt 0:00:40]} 38. Bf6 {[%emt 0:00:00]} Kc3 {[%emt 0:02:33]} 39. Bxe5+ {[%emt 0:00:00]} Kc2 {[%emt 0:01:12]} 40. Bf4 {[%emt 0:00:00]} h5 {[%emt 0:06:37]} 41. h4 {[%emt 0:00:00]} Kc3 {[%emt 0:01:27]} 42. Be5+ {[%emt 0:00:00]} Kc2 {[%emt 0:01:44]} 43. Ke3 {[%emt 0:00:00]} Kd1 {[%emt 0:01:06]} 44. Bc3 {[%emt 0:00:00]} Kc2 {[%emt 0:00:51]} 45. Be1 {[%emt 0:00:00]} Kd1 {[%emt 0:02:00]} 46. Bb4 {[%emt 0:00:00]} f4+ {[%emt 0:01:44]} 47. Kxf4 {[%emt 0:00:00]} Ke2 {[%emt 0:00:08]} 48. g4 {[%emt 0:00:00]} hxg4 {[%emt 0:00:23]} 49. fxg4 {[%emt 0:00:00]} Kd3 {[%emt 0:00:19]} 50. h5 {[%emt 0:00:00]} gxh5 {[%emt 0:00:21]} 51. gxh5 {[%emt 0:00:00]} 1-0

[Event "WALTON 40th BAN-ch U20 Girls 2022"]
[Site "Dhaka"]
[Date "2022.02.20"]
[Round "6.3"]
[White "Jannatul, Ferdous"]
[Black "Wadifa, Ahmed"]
[Result "1/2-1/2"]
[ECO "D02"]
[WhiteElo "1852"]
[BlackElo "1786"]
[Annotator "NA RC"]
[PlyCount "119"]
[EventDate "2022.02.15"]
[EventType "swiss"]
[EventCountry "BAN"]
[SourceTitle "playchess.com"]
[Source "ChessBase"]
[SourceQuality "1"]
[TimeControl "5400+30"]

1. d4 {[%emt 0:00:21]} d5 {[%emt 0:00:06]} 2. Bf4 {[%emt 0:00:04]} Nf6 {[%emt 0:00:07]} 3. e3 {[%emt 0:00:07]} e6 {[%emt 0:00:06]} 4. Nf3 {[%emt 0:00:10]} Bd6 {[%emt 0:00:15]} 5. Bg3 {[%emt 0:00:02]} O-O {[%emt 0:00:26]} 6. Bd3 {[%emt 0:00:22]} c5 {[%emt 0:00:25]} 7. c3 {[%emt 0:00:03]} Qc7 {[%emt 0:00:29] outshines the older 7...Nc6.} 8. Nbd2 {[%emt 0:00:56]} Nbd7 {[%emt 0:05:03]} 9. O-O {[%emt 0:05:51]} Bxg3 {[%emt 0:02:58]} 10. hxg3 {[%emt 0:00:26]} e5 {[%emt 0:02:28]} 11. dxe5 {[%emt 0:02:07]} Nxe5 {[%emt 0:00:10]} 12. Nxe5 {[%emt 0:00:30]} Qxe5 {[%emt 0:00:03]} 13. Nf3 {[%emt 0:00:02]} Qe7 {[%emt 0:00:23]} 14. Bc2 {[%emt 0:06:51] [#]} b6 $146 {[%emt 0:05:49]} ({Predecessor:} 14... Bg4 15. Qd3 Rad8 16. Rfe1 g6 17. Nh2 Bf5 18. Qd2 Bxc2 19. Qxc2 Rd7 20. Rad1 Rfd8 {½-½ (20) Bahillo Vallejo,I (1721)-Martin Garcia,L (1649) Collado Villalba 2019}) 15. Qd3 {[%emt 0:05:26]} Bb7 {[%emt 0:00:50]} 16. Qf5 {[%emt 0:00:50]} Ne4 {[%emt 0:01:25]} 17. Rad1 {[%emt 0:07:22]} Rad8 {[%emt 0:04:01]} 18. Nh4 {[%emt 0:12:53] [#]} (18. Rfe1 $15) 18... g6 {[%emt 0:04:42]} ({Better is} 18... g5 $1 $17 19. Nf3 Bc8) 19. Qg4 {[%emt 0:07:15]} (19. Qf4 $15) 19... h5 {[%emt 0:05:22]} 20. Qe2 {[%emt 0:01:18]} a6 {[%emt 0:05:26]} 21. Bd3 {[%emt 0:07:44]} b5 {[%emt 0:01:07]} 22. a4 {[%emt 0:03:41]} (22. Qc2 $15) 22... c4 {[%emt 0:04:40]} 23. Bc2 $1 {[%emt 0:01:10]} b4 {[%emt 0:00:46]} ({Black should play} 23... Bc8 $15) 24. Bxe4 {[%emt 0:05:32]} Qxe4 {[%emt 0:03:59]} 25. cxb4 {[%emt 0:02:07]} d4 {[%emt 0:00:52]} 26. Qxc4 {[%emt 0:01:18]} dxe3 {[%emt 0:06:39]} 27. Qxe4 {[%emt 0:04:08]} exf2+ {[%emt 0:00:03]} 28. Kxf2 {[%emt 0:00:08]} Bxe4 {[%emt 0:00:08]} 29. Ke3 {[%emt 0:08:04]} Bc2 {[%emt 0:02:51]} (29... Rde8 $15 {might be stronger.} 30. Kf2 Bc2) 30. Rxd8 {[%emt 0:18:42]} Rxd8 {[%emt 0:00:10]} 31. Rf6 {[%emt 0:00:00]} (31. b5 $11 {is superior.}) 31... Rd3+ {[%emt 0:03:51]} 32. Kf2 {[%emt 0:00:00]} Rb3 {[%emt 0:01:40]} 33. Rxa6 {[%emt 0:00:00]} Rxb2 {[%emt 0:00:37]} 34. Rb6 {[%emt 0:00:00]} Bxa4+ {[%emt 0:00:31]} 35. Ke3 {[%emt 0:00:00]} Rb3+ {[%emt 0:01:40]} 36. Kf4 {[%emt 0:00:00]} Kg7 {[%emt 0:03:19]} 37. Nf3 {[%emt 0:00:00]} Rb2 {[%emt 0:00:31]} 38. Ne5 {[%emt 0:01:16]} Rxg2 {[%emt 0:03:02]} 39. Rb7 {[%emt 0:00:48]} Rf2+ {[%emt 0:00:15]} 40. Ke3 {[%emt 0:01:18]} Rf1 {[%emt 0:07:30]} 41. b5 {[%emt 0:01:01]} Rb1 {[%emt 0:00:53]} 42. Nxf7 {[%emt 0:00:50]} Kf6 {[%emt 0:01:03]} 43. Nd6 {[%emt 0:00:28]} Ke6 {[%emt 0:00:18]} 44. Ne4 $11 {[%emt 0:00:38]} Rxb5 {[%emt 0:00:16]} 45. Rg7 {[%emt 0:00:32]} Kf5 {[%emt 0:07:12]} 46. Nd6+ {[%emt 0:00:23]} Kf6 {[%emt 0:00:02]} 47. Nxb5 {[%emt 0:00:33]} Kxg7 {[%emt 0:00:02]} 48. Nc3 {[%emt 0:00:05]} Bc6 {[%emt 0:00:14]} 49. Kf2 {[%emt 0:00:14]} Kf6 {[%emt 0:00:11]} 50. Kg1 {[%emt 0:00:25]} g5 {[%emt 0:00:53]} 51. Kh2 {[%emt 0:00:03]} Ke5 {[%emt 0:00:37]} 52. Nd1 {[%emt 0:01:00]} Kd4 {[%emt 0:01:15]} 53. Nf2 {[%emt 0:00:15]} Ke3 {[%emt 0:00:52]} 54. Nh3 {[%emt 0:00:35]} g4 {[%emt 0:01:15]} 55. Ng5 {[%emt 0:00:44]} Kf2 {[%emt 0:00:53]} 56. Ne4+ {[%emt 0:00:22]} Kf3 {[%emt 0:01:56]} 57. Ng5+ {[%emt 0:00:26]} Ke3 {[%emt 0:00:36]} 58. Nf7 {[%emt 0:00:53]} h4 {[%emt 0:00:27]} 59. Ne5 {[%emt 0:00:40]} hxg3+ {[%emt 0:06:27]} 60. Kxg3 {[%emt 0:01:31]} 1/2-1/2

[Event "WALTON 40th BAN-ch U20 Girls 2022"]
[Site "Dhaka"]
[Date "2022.02.20"]
[Round "6.4"]
[White "Omnia Binta Yusuf, Lubaba"]
[Black "Nusrat Jahan, Alo"]
[Result "1/2-1/2"]
[ECO "B22"]
[WhiteElo "1578"]
[BlackElo "1818"]
[Annotator "NA RC"]
[PlyCount "119"]
[EventDate "2022.02.15"]
[EventType "swiss"]
[EventCountry "BAN"]
[SourceTitle "playchess.com"]
[Source "ChessBase"]
[SourceQuality "1"]
[TimeControl "5400+30"]

1. e4 {[%emt 0:00:11]} c5 {[%emt 0:00:25]} 2. c3 {[%emt 0:00:14]} d5 {[%emt 0:00:43]} 3. exd5 {[%emt 0:00:06]} Qxd5 {[%emt 0:00:06]} 4. Nf3 {[%emt 0:00:16]} Nf6 {[%emt 0:00:21]} 5. Na3 {[%emt 0:00:10]} Bd7 {[%emt 0:01:32]} 6. Bc4 {[%emt 0:03:51]} Qe4+ {[%emt 0:03:19]} 7. Qe2 {[%emt 0:01:59]} (7. Be2 $14) 7... Qxe2+ {[%emt 0:04:10]} 8. Bxe2 {[%emt 0:02:41]} a6 {[%emt 0:02:06]} 9. Nc2 {[%emt 0:04:33]} Nc6 {[%emt 0:03:19]} 10. d4 {[%emt 0:01:43]} e6 {[%emt 0:02:56]} 11. dxc5 {[%emt 0:01:32]} Bxc5 {[%emt 0:00:09]} 12. Be3 {[%emt 0:00:24]} Be7 {[%emt 0:04:40]} 13. O-O {[%emt 0:05:55]} O-O {[%emt 0:01:05]} 14. Ncd4 {[%emt 0:01:06]} Nd5 {[%emt 0:05:58]} 15. Nxc6 {[%emt 0:02:59]} Bxc6 {[%emt 0:01:19]} 16. Bd2 {[%emt 0:02:47]} Rfd8 {[%emt 0:03:38]} 17. Rad1 {[%emt 0:04:31]} Bf6 {[%emt 0:04:51]} 18. Bg5 {[%emt 0:01:43]} Bxg5 {[%emt 0:06:24]} 19. Nxg5 {[%emt 0:00:48]} h6 {[%emt 0:02:10]} 20. Nh3 {[%emt 0:02:29]} Ba4 {[%emt 0:06:56]} 21. Rd4 {[%emt 0:05:11]} Bc2 {[%emt 0:03:41]} 22. Bf3 {[%emt 0:07:04]} Nc7 {[%emt 0:15:32]} (22... Nf6 $11) 23. Rb4 {[%emt 0:09:15]} ({Better is} 23. Rc1 $14 Bg6 24. Bxb7) 23... Rab8 {[%emt 0:03:00]} 24. Nf4 {[%emt 0:02:59]} (24. Rc1 $11 Bh7 25. a4 (25. Rxb7 Rxb7 26. Bxb7 Rb8 $17) (25. Bxb7 $2 a5 $19)) 24... b5 {[%emt 0:02:34]} (24... e5 $5 {[%cal Re5f4]} 25. Nh5 a5 $15) 25. Rc1 {[%emt 0:04:54]} Bf5 {[%emt 0:03:08]} 26. Ne2 {[%emt 0:06:34] [#]} Rd6 {[%emt 0:07:00]} (26... e5 $1 $17) 27. Rd4 {[%emt 0:01:48]} Rbd8 {[%emt 0:01:19]} 28. Rcd1 {[%emt 0:00:32]} Rxd4 {[%emt 0:01:13]} 29. Rxd4 {[%emt 0:00:29]} Rxd4 {[%emt 0:00:31]} 30. Nxd4 {[%emt 0:00:23]} Bb1 {[%emt 0:01:10]} 31. a4 $11 {[%emt 0:01:36]} Bd3 {[%emt 0:01:11]} (31... bxa4 $11 32. Bd1 e5) 32. axb5 {[%emt 0:00:16]} Nxb5 {[%emt 0:00:51]} 33. Be2 {[%emt 0:02:05]} Bxe2 {[%emt 0:00:07]} 34. Nxe2 {[%emt 0:00:06]} Kf8 {[%emt 0:00:22]} 35. Nc1 {[%emt 0:01:40]} Ke7 {[%emt 0:00:42]} 36. Kf1 {[%emt 0:00:32]} Kd6 {[%emt 0:01:11]} 37. Ke2 {[%emt 0:00:07]} Kd5 {[%emt 0:01:52]} 38. Kd3 {[%emt 0:00:27]} Nd6 {[%emt 0:00:38]} 39. f3 {[%emt 0:01:00]} e5 {[%emt 0:00:43]} 40. Na2 {[%emt 0:00:35]} a5 {[%emt 0:00:54]} 41. b3 {[%emt 0:01:12]} e4+ {[%emt 0:00:57]} 42. fxe4+ {[%emt 0:02:24]} Nxe4 {[%emt 0:00:02]} 43. c4+ {[%emt 0:00:36]} Ke5 {[%emt 0:00:37]} 44. Nc3 {[%emt 0:00:40]} Nc5+ {[%emt 0:00:58]} 45. Kc2 {[%emt 0:00:36]} Kd4 {[%emt 0:00:51]} 46. Nd1 {[%emt 0:03:16]} a4 {[%emt 0:01:39]} 47. bxa4 {[%emt 0:00:37]} Kxc4 {[%emt 0:02:16]} 48. Nb2+ {[%emt 0:00:43]} Kb4 {[%emt 0:01:07]} 49. g4 {[%emt 0:01:12]} Ne4 {[%emt 0:01:35]} 50. h4 {[%emt 0:01:45]} Nf6 {[%emt 0:00:47]} 51. g5 {[%emt 0:00:27]} hxg5 {[%emt 0:00:06]} 52. hxg5 {[%emt 0:00:04]} Ne4 {[%emt 0:00:42]} 53. g6 {[%emt 0:00:17]} fxg6 {[%emt 0:00:45]} 54. Kd3 {[%emt 0:00:19]} Nc5+ {[%emt 0:00:32]} 55. Ke3 {[%emt 0:01:24]} Nxa4 {[%emt 0:00:45]} 56. Nxa4 {[%emt 0:05:55]} Kxa4 {[%emt 0:00:10]} 57. Kf4 {[%emt 0:00:04]} Kb5 {[%emt 0:00:09]} 58. Kg5 {[%emt 0:00:05]} Kc5 {[%emt 0:00:06]} 59. Kxg6 {[%emt 0:00:09]} Kd5 {[%emt 0:00:09]} 60. Kxg7 {[%emt 0:00:06]} 1/2-1/2

[Event "WALTON 40th BAN-ch U20 Girls 2022"]
[Site "Dhaka"]
[Date "2022.02.20"]
[Round "6.5"]
[White "Marzuka, Mukarrama"]
[Black "Tasnia Tarannum, Orpa"]
[Result "0-1"]
[ECO "A46"]
[WhiteElo "1095"]
[BlackElo "1678"]
[Annotator "NA RC"]
[PlyCount "112"]
[EventDate "2022.02.15"]
[EventType "swiss"]
[EventCountry "BAN"]
[SourceTitle "playchess.com"]
[Source "ChessBase"]
[SourceQuality "1"]
[TimeControl "5400+30"]

1. d4 {[%emt 0:00:03]} Nf6 {[%emt 0:00:06]} 2. Nf3 {[%emt 0:00:11]} e6 {[%emt 0:00:05]} 3. Bf4 {[%emt 0:00:08]} c5 {[%emt 0:00:05]} 4. e3 {[%emt 0:00:25]} Nc6 {[%emt 0:00:22]} 5. c4 {[%emt 0:02:45]} d5 {[%emt 0:02:59]} 6. Nc3 {[%emt 0:07:20]} a6 {[%emt 0:03:16]} 7. Bd3 {[%emt 0:05:12]} dxc4 {[%emt 0:01:22]} 8. Bxc4 {[%emt 0:00:20]} b5 {[%emt 0:00:25]} 9. Be2 {[%emt 0:13:02]} Bd6 {[%emt 0:02:18]} 10. Bg5 {[%emt 0:14:55]} cxd4 {[%emt 0:06:00]} 11. exd4 {[%emt 0:03:38]} O-O {[%emt 0:04:03]} 12. O-O {[%emt 0:01:56]} Ne7 {[%emt 0:06:29]} 13. Bxf6 {[%emt 0:07:58]} gxf6 {[%emt 0:00:03]} 14. Re1 {[%emt 0:02:08]} Bb7 {[%emt 0:00:27]} 15. Nd2 {[%emt 0:03:35]} Qc7 {[%emt 0:04:15]} 16. g3 {[%emt 0:03:50]} Ng6 {[%emt 0:03:40]} 17. Bh5 {[%emt 0:02:37]} f5 {[%emt 0:03:42]} 18. Nb3 {[%emt 0:05:01]} Rad8 {[%emt 0:03:21]} 19. Rc1 {[%emt 0:04:37]} Qd7 {[%emt 0:01:24]} 20. Na5 {[%emt 0:05:17]} Ba8 {[%emt 0:01:13]} 21. Bf3 {[%emt 0:02:18]} Bxf3 {[%emt 0:01:25]} 22. Qxf3 {[%emt 0:00:10]} Rc8 {[%emt 0:03:14]} 23. Qb7 {[%emt 0:02:05]} Qxb7 {[%emt 0:01:02]} 24. Nxb7 {[%emt 0:00:06]} Be7 {[%emt 0:00:15]} 25. Ne2 {[%emt 0:01:48]} h5 {[%emt 0:51:29]} 26. h4 {[%emt 0:01:20]} f4 {[%emt 0:00:00]} 27. Kh2 {[%emt 0:06:13]} Bf6 {[%emt 0:00:00]} 28. Rxc8 {[%emt 0:01:59]} Rxc8 {[%emt 0:00:00]} 29. Nc5 {[%emt 0:00:58]} Bxd4 {[%emt 0:00:00]} 30. Nxd4 {[%emt 0:01:20]} Rxc5 {[%emt 0:00:00]} 31. Kg2 {[%emt 0:01:00]} e5 {[%emt 0:00:00]} 32. Nf3 {[%emt 0:00:41]} fxg3 {[%emt 0:00:00]} 33. Kxg3 {[%emt 0:00:18]} f6 {[%emt 0:00:00]} 34. Rd1 {[%emt 0:01:02]} Rc4 {[%emt 0:00:00]} 35. Kh3 {[%emt 0:01:11]} Rf4 {[%emt 0:00:00]} 36. Rd8+ {[%emt 0:00:30]} Kf7 {[%emt 0:00:00]} 37. Kg3 {[%emt 0:00:23]} e4 {[%emt 0:00:00]} 38. Nh2 {[%emt 0:00:36]} Rxh4 {[%emt 0:00:00]} 39. Ra8 {[%emt 0:00:29]} Rf4 {[%emt 0:00:00]} 40. Rxa6 {[%emt 0:00:32]} h4+ {[%emt 0:00:00]} 41. Kg2 {[%emt 0:00:23]} Ne5 {[%emt 0:00:00]} 42. Ra3 {[%emt 0:00:28]} Nd3 {[%emt 0:00:00]} 43. Kh3 {[%emt 0:00:40]} Rxf2 {[%emt 0:00:00]} 44. b4 {[%emt 0:00:27]} Nxb4 {[%emt 0:00:00]} 45. Ng4 {[%emt 0:00:12]} Rxa2 {[%emt 0:00:00]} 46. Rxa2 {[%emt 0:00:29]} Nxa2 {[%emt 0:00:00]} 47. Kxh4 {[%emt 0:00:01]} b4 {[%emt 0:00:00]} 48. Ne3 {[%emt 0:00:38]} b3 {[%emt 0:00:00]} 49. Nc4 {[%emt 0:00:12]} Ke6 {[%emt 0:00:00]} 50. Kg4 {[%emt 0:00:40]} Kd5 {[%emt 0:00:00]} 51. Ne3+ {[%emt 0:00:34]} Kd4 {[%emt 0:00:00]} 52. Kf4 {[%emt 0:00:27]} Nb4 {[%emt 0:00:00]} 53. Nd1 {[%emt 0:01:21]} b2 {[%emt 0:00:00]} 54. Nxb2 {[%emt 0:00:27]} Nd3+ {[%emt 0:00:00]} 55. Nxd3 {[%emt 0:00:20]} exd3 {[%emt 0:00:00]} 56. Kf3 {[%emt 0:00:14]} Kc5 {[%emt 0:15:30]} 0-1